bitfinex-derivatives/quotes_BTCF0:USTF0_20250424
["timestamp","ask_amount","ask_price","bid_price","bid_amount"]
[1745500443473,0.25165913,92784.0,92783.0,0.5822546]
[1745500444470,0.24565913,92784.0,92783.0,0.5812546]
[1745500444771,0.1087534,92784.0,92783.0,0.5812546]
[1745500445370,0.001,92784.0,92783.0,0.59211964]
[1745500445669,0.1077534,92784.0,92783.0,0.59211964]
[1745500447174,0.1077534,92784.0,92783.0,0.5812546]
[1745500448977,0.1077534,92784.0,92783.0,0.5510546]
[1745500449179,0.1077534,92784.0,92783.0,0.3790546]
[1745500449576,0.1087534,92784.0,92783.0,0.3790546]
[1745500449876,0.1709534,92784.0,92783.0,0.3790546]
[1745500450072,0.1699534,92784.0,92783.0,0.3790546]
[1745500450278,0.1709534,92784.0,92783.0,0.3790546]
[1745500451179,0.1699534,92784.0,92783.0,0.3790546]
[1745500451380,0.1709534,92784.0,92783.0,0.3790546]
[1745500453383,0.0314,92784.0,92783.0,0.3790546]
[1745500453579,0.1391534,92784.0,92783.0,0.4090546]
[1745500455291,0.0314,92784.0,92783.0,0.4090546]
[1745500457079,0.0333,92790.0,92783.0,0.4090546]
[1745500457080,0.5224189,92791.0,92787.0,0.0538746]
[1745500457275,0.0321,92790.0,92789.0,0.1077476]
[1745500457480,0.0321,92790.0,92789.0,0.4015476]
[1745500458179,0.0321,92790.0,92789.0,0.5735476]
[1745500459782,0.0321,92790.0,92789.0,0.5745476]
[1745500459984,0.0321,92790.0,92789.0,0.5755476]
[1745500460688,0.0321,92790.0,92789.0,0.5745476]
[1745500460890,0.0321,92790.0,92789.0,0.5755476]
[1745500462287,0.0321,92790.0,92789.0,0.5745476]
[1745500462483,0.0643,92790.0,92789.0,0.5448476]
[1745500462981,0.1720465,92790.0,92789.0,0.5448476]
[1745500464290,0.1720465,92790.0,92789.0,0.3728476]
[1745500465297,0.1720465,92790.0,92789.0,0.5448476]
[1745500467191,0.1720465,92790.0,92789.0,0.3728476]
[1745500475503,0.1720465,92790.0,92789.0,0.3397476]
[1745500475702,0.1720465,92790.0,92789.0,0.3706476]
[1745500504521,0.0643,92790.0,92789.0,0.3706476]
[1745500505231,0.0321,92790.0,92789.0,0.3706476]
[1745500505420,0.1389404,92796.0,92789.0,0.3706476]
[1745500505421,0.10994288,92796.0,92795.0,0.1077407]
[1745500505619,0.0325,92804.0,92803.0,0.1077314]
[1745500505825,0.13690573,92805.0,92804.0,0.1077302]
[1745500506023,0.13690573,92805.0,92804.0,0.3877302]
[1745500506329,0.16458436,92814.0,92813.0,0.1077198]
[1745500506525,0.16458436,92814.0,92813.0,0.7385198]
[1745500506719,0.19708436,92814.0,92813.0,0.7385198]
[1745500506915,0.30480296,92814.0,92813.0,0.7385198]
[1745500507129,0.33720296,92814.0,92813.0,0.7385198]
[1745500507331,0.33720296,92814.0,92813.0,0.7709198]
[1745500507524,0.22948436,92814.0,92813.0,0.7719198]
[1745500508130,0.33720296,92814.0,92813.0,0.7719198]
[1745500509032,0.19708436,92814.0,92813.0,0.7719198]
[1745500510431,0.19708436,92814.0,92813.0,0.4111198]
[1745500510637,0.16458436,92814.0,92813.0,0.42210153]
[1745500510825,0.16458436,92814.0,92813.0,0.45500153]
[1745500511027,0.0011,92817.0,92816.0,0.1077163]
[1745500511223,0.0011,92817.0,92816.0,0.3877163]
[1745500511834,0.0309,92822.0,92821.0,0.1077105]
[1745500512136,1e-08,92824.0,92821.0,0.6308]
[1745500512340,1e-08,92824.0,92823.0,0.1077082]
[1745500512545,1e-08,92824.0,92823.0,0.3877082]
[1745500512739,1e-08,92824.0,92823.0,0.5604402]
[1745500513139,1e-08,92824.0,92823.0,0.7324402]
[1745500513539,0.0309,92840.0,92839.0,0.1076896]
[1745500513740,0.0309,92840.0,92839.0,0.7384896]
[1745500513943,0.0618,92840.0,92839.0,0.7384896]
[1745500514442,0.0309,92840.0,92839.0,0.7713896]
[1745500514644,0.0309,92840.0,92839.0,0.8039896]
[1745500515238,0.005,92840.0,92839.0,0.8039896]
[1745500515833,0.009,92840.0,92839.0,0.8039896]
[1745500516439,0.005,92840.0,92839.0,0.8039896]
[1745500516634,0.008,92840.0,92839.0,0.8039896]
[1745500516846,0.003,92840.0,92839.0,0.8039896]
[1745500517148,0.007,92840.0,92839.0,0.8039896]
[1745500517646,0.04647,92841.0,92840.0,0.1076884]
[1745500517848,0.04647,92841.0,92840.0,0.3676884]
[1745500518043,0.04647,92841.0,92840.0,0.3977884]
[1745500518338,0.04647,92841.0,92840.0,0.5697884]
[1745500519147,0.04647,92841.0,92840.0,0.3977884]
[1745500519744,0.04847,92841.0,92840.0,0.3977884]
[1745500520139,0.07897,92841.0,92840.0,0.3977884]
[1745500520741,0.08297,92841.0,92840.0,0.3977884]
[1745500520945,0.11567,92841.0,92840.0,0.3977884]
[1745500522054,0.2233573,92841.0,92840.0,0.40859438]
[1745500524949,0.11567,92841.0,92840.0,0.40859438]
[1745500535558,0.14877,92841.0,92840.0,0.40859438]
[1745500537659,0.2564573,92841.0,92840.0,0.26]
[1745500537862,0.2564573,92841.0,92840.0,0.3676884]
[1745500538159,0.4284573,92841.0,92840.0,0.3676884]
[1745500539748,0.4284573,92841.0,92840.0,0.26]
[1745500539954,0.1077,92830.0,92829.0,0.01091714]
[1745500540156,0.2797,92830.0,92829.0,0.27]
[1745500540361,0.2797,92830.0,92817.0,0.4685147]
[1745500540362,0.1077186,92814.0,92809.0,0.031]
[1745500540663,0.1077186,92814.0,92813.0,0.42432759]
[1745500541169,0.2797186,92814.0,92813.0,0.42432759]
[1745500541553,0.2797186,92814.0,92813.0,0.0567287]
[1745500541751,0.2797186,92814.0,92813.0,0.1567287]
[1745500541968,0.2797186,92814.0,92813.0,0.1607287]
[1745500542260,0.2797186,92814.0,92813.0,0.0607287]
[1745500542467,0.2797186,92814.0,92813.0,0.1607287]
[1745500542663,0.2797186,92814.0,92813.0,0.1627287]
[1745500543267,0.8470386,92814.0,92813.0,0.2137198]
[1745500543658,0.8470386,92814.0,92813.0,0.106]
[1745500546769,0.8470386,92814.0,92813.0,0.2137198]
[1745500546954,0.8470386,92814.0,92813.0,0.106]
[1745500549771,0.9547826,92814.0,92813.0,0.106]
[1745500550460,0.9547826,92814.0,92813.0,0.006]
[1745500550659,0.9547826,92814.0,92813.0,0.106]
[1745500550867,0.9547826,92814.0,92813.0,0.006]
[1745500551068,1.3155826,92814.0,92813.0,0.006]
[1745500551267,1.5655826,92814.0,92813.0,0.006]
[1745500551467,1.3155826,92814.0,92813.0,0.006]
[1745500551671,1.5655826,92814.0,92813.0,0.006]
[1745500552060,1.5655826,92814.0,92813.0,0.002]
[1745500552262,0.215481,92798.0,92793.0,0.0538713]
[1745500552463,0.1396383,92797.0,92796.0,0.1395395]
[1745500552669,0.0319,92797.0,92796.0,0.3795395]
[1745500552971,0.0319,92797.0,92796.0,0.4109395]
[1745500553171,0.0319,92797.0,92796.0,0.4439395]
[1745500553568,0.1396383,92797.0,92796.0,0.4439395]
[1745500554470,0.0329,92797.0,92796.0,0.4449395]
[1745500554773,0.001,92797.0,92796.0,0.4449395]
[1745500554965,0.0308,92801.0,92800.0,0.1077349]
[1745500555162,0.06732,92803.0,92802.0,0.1077325]
[1745500555368,0.06732,92803.0,92802.0,0.3777325]
[1745500555570,0.1077281,92806.0,92805.0,0.1077291]
[1745500555774,0.1077281,92806.0,92805.0,0.3377291]
[1745500555976,0.0538628,92808.0,92807.0,0.1077267]
[1745500556176,0.0538628,92808.0,92807.0,0.3577267]
[1745500557078,0.2582628,92808.0,92807.0,0.3577267]
[1745500558172,0.26630463,92808.0,92807.0,0.3577267]
[1745500558473,0.26630463,92808.0,92807.0,0.25]
[1745500559175,0.26830463,92808.0,92807.0,0.25]
[1745500560476,0.26930463,92808.0,92807.0,0.25]
[1745500560667,0.26730463,92808.0,92807.0,0.25]
[1745500560866,0.27030463,92808.0,92807.0,0.2803]
[1745500561069,0.27130463,92808.0,92807.0,0.2803]
[1745500561773,0.27130463,92808.0,92807.0,0.3880267]
[1745500561968,0.27130463,92808.0,92807.0,0.2803]
[1745500562170,0.27130463,92808.0,92807.0,0.3880267]
[1745500562379,0.23890463,92808.0,92807.0,0.7488267]
[1745500562569,0.177,92808.0,92807.0,0.7488267]
[1745500562773,0.0869514,92828.0,92819.0,0.1077128]
[1745500562774,0.0333,92820.0,92819.0,0.1077128]
[1745500562970,0.0301,92827.0,92826.0,0.1077047]
[1745500563173,0.1378035,92827.0,92826.0,0.3377047]
[1745500563568,0.1378035,92827.0,92826.0,0.4017047]
[1745500563775,0.1077035,92827.0,92826.0,0.4017047]
[1745500563969,0.1615532,92829.0,92828.0,0.1077024]
[1745500564282,0.1615532,92829.0,92828.0,0.6985024]
[1745500565186,0.1625532,92829.0,92828.0,0.6985024]
[1745500565583,0.1615532,92829.0,92828.0,0.6985024]
[1745500565773,0.0548511,92829.0,92828.0,0.6985024]
[1745500567585,0.001,92829.0,92828.0,0.6985024]
[1745500568085,0.001617,92833.0,92832.0,0.1076977]
[1745500568286,0.1093136,92833.0,92832.0,0.3376977]
[1745500568880,0.001617,92833.0,92832.0,0.3376977]
[1745500569186,0.001617,92833.0,92832.0,0.3987977]
[1745500570384,0.002617,92833.0,92832.0,0.3987977]
[1745500570772,0.001,92833.0,92832.0,0.3987977]
[1745500571379,0.08193748,92840.0,92839.0,0.1076896]
[1745500571602,0.18962588,92840.0,92839.0,0.3476896]
[1745500572086,0.08193748,92840.0,92839.0,0.3476896]
[1745500572281,0.18962588,92840.0,92839.0,0.4116896]
[1745500572884,0.19162588,92840.0,92839.0,0.4116896]
[1745500573085,0.1096884,92840.0,92839.0,0.4116896]
[1745500574081,0.1116884,92840.0,92839.0,0.4116896]
[1745500577190,0.004,92840.0,92839.0,0.4116896]
[1745500577488,0.1116884,92840.0,92839.0,0.4116896]
[1745500577989,0.004,92840.0,92839.0,0.4116896]
[1745500579597,0.1116884,92840.0,92839.0,0.4116896]
[1745500580290,0.004,92840.0,92839.0,0.4116896]
[1745500580492,0.1443884,92840.0,92839.0,0.4116896]
[1745500581392,0.0367,92840.0,92839.0,0.4116896]
[1745500582095,0.1443884,92840.0,92839.0,0.4116896]
[1745500582296,0.0367,92840.0,92839.0,0.4116896]
[1745500582491,0.1443884,92840.0,92839.0,0.4116896]
[1745500582688,0.1759884,92840.0,92839.0,0.4116896]
[1745500584792,0.0683,92840.0,92839.0,0.4116896]
[1745500585094,0.1759884,92840.0,92839.0,0.4116896]
[1745500585298,0.1759884,92840.0,92839.0,0.3804896]
[1745500587595,0.0683,92840.0,92839.0,0.3804896]
[1745500587795,0.1759884,92840.0,92839.0,0.3804896]
[1745500588596,0.1759884,92840.0,92839.0,0.4109896]
[1745500589188,0.0683,92840.0,92839.0,0.4109896]
[1745500590603,0.1759884,92840.0,92839.0,0.4109896]
[1745500592199,0.1749884,92840.0,92839.0,0.4109896]
[1745500592900,0.0673,92840.0,92839.0,0.4109896]
[1745500594599,0.003,92840.0,92839.0,0.4109896]
[1745500595102,0.0303,92846.0,92845.0,0.1076826]
[1745500595297,0.0303,92846.0,92845.0,0.7184826]
[1745500595492,0.0303,92846.0,92845.0,0.7828826]
[1745500595697,0.0011,92847.0,92846.0,0.1076815]
[1745500595997,0.0011,92847.0,92846.0,0.3776815]
[1745500596201,0.0011,92847.0,92846.0,0.4410815]
[1745500596806,0.0011,92847.0,92846.0,0.45212874]
[1745500597508,0.0041,92847.0,92846.0,0.42042874]
[1745500597901,0.0071,92847.0,92846.0,0.42042874]
[1745500599696,0.1454803,92847.0,92846.0,0.3776815]
[1745500599899,0.1756803,92847.0,92846.0,0.3776815]
[1745500600099,0.3786803,92847.0,92846.0,0.3776815]
[1745500600509,0.271,92847.0,92846.0,0.4100815]
[1745500601007,0.2403,92847.0,92846.0,0.4100815]
[1745500601206,0.2403,92847.0,92846.0,0.4404815]
[1745500605111,0.1791,92847.0,92846.0,0.4404815]
[1745500605310,0.1791,92847.0,92846.0,0.4704815]
[1745500606107,0.0071,92847.0,92846.0,0.4704815]
[1745500610413,0.0377,92847.0,92846.0,0.4704815]
[1745500611020,0.1453803,92847.0,92846.0,0.4404815]
[1745500611316,0.1780803,92847.0,92846.0,0.4404815]
[1745500611716,0.0704,92847.0,92846.0,0.4404815]
[1745500611910,0.1780803,92847.0,92846.0,0.4404815]
[1745500613606,0.0704,92847.0,92846.0,0.4404815]
[1745500614707,0.0704,92847.0,92846.0,0.4708815]
[1745500619621,0.1780803,92847.0,92846.0,0.4708815]
[1745500620118,0.1780803,92847.0,92846.0,0.4404815]
[1745500621823,0.0704,92847.0,92846.0,0.4404815]
[1745500622211,0.0704,92847.0,92846.0,0.4725815]
[1745500625123,0.0704,92847.0,92846.0,0.3776815]
[1745500625325,0.1780803,92847.0,92846.0,0.3776815]
[1745500625824,0.1780803,92847.0,92846.0,0.4095815]
[1745500626325,0.2424,92847.0,92846.0,0.4095815]
[1745500626625,0.1791,92847.0,92846.0,0.4095815]
[1745500626924,0.1791,92847.0,92846.0,0.4399815]
[1745500627112,0.0636,92858.0,92851.0,0.0538377]
[1745500627316,0.10938402,92859.0,92858.0,0.1076676]
[1745500627516,0.0306,92866.0,92865.0,0.1076595]
[1745500627821,0.033,92867.0,92866.0,0.1076583]
[1745500628022,0.033,92867.0,92866.0,0.3476583]
[1745500628324,0.033,92867.0,92866.0,0.5824583]
[1745500629121,0.0656,92867.0,92866.0,0.4104583]
[1745500629326,0.0716,92867.0,92866.0,0.4104583]
[1745500629817,0.0766,92867.0,92866.0,0.4104583]
[1745500630824,0.0766,92867.0,92866.0,0.3800583]
[1745500635732,0.011,92867.0,92866.0,0.3800583]
[1745500636426,0.1186571,92867.0,92866.0,0.3800583]
[1745500636627,0.011,92867.0,92866.0,0.3800583]
[1745500637028,0.0753,92867.0,92866.0,0.3800583]
[1745500641335,0.0753,92867.0,92866.0,0.4110583]
[1745500645034,0.0753,92867.0,92866.0,0.3800583]
[1745500646540,0.0753,92867.0,92866.0,0.4103583]
[1745500647137,0.0753,92867.0,92866.0,0.24]
[1745500647345,0.1829571,92867.0,92866.0,0.3476583]
[1745500648334,0.3549571,92867.0,92866.0,0.3476583]
[1745500648535,0.2473,92867.0,92866.0,0.3476583]
[1745500648835,0.2473,92867.0,92866.0,0.3793583]
[1745500650145,0.0753,92867.0,92866.0,0.4093583]
[1745500650737,0.0693,92867.0,92866.0,0.4093583]
[1745500650939,0.0713,92867.0,92866.0,0.3793583]
[1745500652447,0.007,92867.0,92866.0,0.3793583]
[1745500652638,0.007,92867.0,92866.0,0.4102583]
[1745500653442,0.004,92867.0,92866.0,0.4102583]
[1745500653643,0.005,92867.0,92866.0,0.4102583]
[1745500658838,0.004,92867.0,92866.0,0.4102583]
[1745500660339,0.003,92867.0,92866.0,0.4102583]
[1745500667149,0.003,92867.0,92866.0,0.7710583]
[1745500670644,0.003,92867.0,92866.0,0.4102583]
[1745500670843,0.003,92867.0,92866.0,0.7710583]
[1745500672355,0.003,92867.0,92866.0,0.7401583]
[1745500672661,0.1106571,92867.0,92866.0,0.3476583]
[1745500672844,0.003,92867.0,92866.0,0.3476583]
[1745500673049,0.003,92867.0,92866.0,0.3793583]
[1745500673251,0.175,92867.0,92866.0,0.3793583]
[1745500673456,0.2066,92867.0,92866.0,0.3793583]
[1745500674656,0.3142571,92867.0,92866.0,0.3793583]
[1745500677648,0.3142571,92867.0,92866.0,0.3476583]
[1745500680555,0.2066,92867.0,92866.0,0.3476583]
[1745500681163,0.3142571,92867.0,92866.0,0.3476583]
[1745500684760,0.3142571,92867.0,92866.0,0.24]
[1745500685247,0.1076734,92853.0,92852.0,0.02]
[1745500685451,0.1615181,92850.0,92849.0,0.1615133]
[1745500685754,0.1615181,92850.0,92849.0,0.4215133]
[1745500686155,0.3335181,92850.0,92849.0,0.4215133]
[1745500687763,0.2258389,92850.0,92849.0,0.4255133]
[1745500688158,0.2258389,92850.0,92849.0,0.4295133]
[1745500694259,0.2258389,92850.0,92849.0,0.4624133]
[1745500699358,0.2258389,92850.0,92849.0,0.4600133]
[1745500700672,0.172,92850.0,92849.0,0.4600133]
[1745500701172,0.2349,92850.0,92849.0,0.4600133]
[1745500702468,0.172,92850.0,92849.0,0.4600133]
[1745500702667,0.172,92850.0,92849.0,0.4902133]
[1745500703063,0.3608,92859.0,92852.0,0.1615082]
[1745500703265,0.1076722,92854.0,92853.0,0.0841366]
[1745500703572,0.1076768,92850.0,92849.0,0.1156772]
[1745500703871,0.1076768,92850.0,92849.0,0.345678]
[1745500704265,0.2796768,92850.0,92849.0,0.337678]
[1745500704577,0.3119768,92850.0,92849.0,0.337678]
[1745500704874,0.3434768,92850.0,92849.0,0.341678]
[1745500705774,0.3434768,92850.0,92849.0,0.345678]
[1745500712379,0.3434768,92850.0,92849.0,0.238]
[1745500712572,0.1076884,92840.0,92839.0,0.0315]
[1745500712772,0.0538459,92838.0,92831.0,0.139398]
[1745500712978,0.1076966,92833.0,92832.0,0.139196]
[1745500713178,0.2796966,92833.0,92832.0,0.3391977]
[1745500713880,0.3439966,92833.0,92832.0,0.3391977]
[1745500715083,0.3439966,92833.0,92832.0,0.3471977]
[1745500715582,0.172,92833.0,92832.0,0.3471977]
[1745500716278,0.3608,92842.0,92841.0,0.1076873]
[1745500716484,0.4684861,92842.0,92841.0,0.3576873]
[1745500717183,0.4684861,92842.0,92841.0,0.4202873]
[1745500718286,0.4684861,92842.0,92841.0,0.4232873]
[1745500718583,0.4684861,92842.0,92841.0,0.4272873]
[1745500719284,0.4684861,92842.0,92841.0,0.3950873]
[1745500719875,0.5312861,92842.0,92841.0,0.3950873]
[1745500720088,0.7032861,92842.0,92841.0,0.3950873]
[1745500720285,0.7032861,92842.0,92841.0,0.257]
[1745500720877,1.0956,92842.0,92835.0,0.0538468]
[1745500721077,0.161539,92838.0,92837.0,0.1076918]
[1745500721276,0.161539,92838.0,92837.0,0.3676918]
[1745500721485,0.223539,92838.0,92837.0,0.3676918]
[1745500721787,0.1158459,92838.0,92837.0,0.3676918]
[1745500722188,0.2878459,92838.0,92837.0,0.3676918]
[1745500722488,0.7878459,92838.0,92837.0,0.3676918]
[1745500722690,0.7878459,92838.0,92837.0,0.3726918]
[1745500723090,0.7878459,92838.0,92837.0,0.3766918]
[1745500726099,0.8955619,92838.0,92837.0,0.3766918]
[1745500726894,0.7878459,92838.0,92837.0,0.3766918]
[1745500730786,0.672,92838.0,92837.0,0.3766918]
[1745500731093,0.7796908,92838.0,92837.0,0.3766918]
[1745500731396,0.6076908,92838.0,92837.0,0.3766918]
[1745500731985,0.1392908,92838.0,92837.0,0.3766918]
[1745500732192,0.3112908,92838.0,92837.0,0.3766918]
[1745500732395,0.3416908,92838.0,92837.0,0.3766918]
[1745500732992,0.234,92838.0,92837.0,0.3766918]
[1745500733197,0.172,92838.0,92837.0,0.3766918]
[1745500733998,0.172,92838.0,92837.0,0.4099918]
[1745500734387,0.2796908,92838.0,92837.0,0.4099918]
[1745500735288,0.1076908,92838.0,92837.0,0.4099918]
[1745500737097,0.2796908,92838.0,92837.0,0.4099918]
[1745500738197,0.1076908,92838.0,92837.0,0.4099918]
[1745500748902,0.1177436,92841.0,92837.0,0.3561454]
[1745500749205,0.0538436,92841.0,92840.0,0.1076884]
[1745500749505,0.0538436,92841.0,92840.0,0.3676884]
[1745500750203,0.2258436,92841.0,92840.0,0.3716884]
[1745500750905,0.2258436,92841.0,92840.0,0.4359884]
[1745500751206,0.2896436,92841.0,92840.0,0.4359884]
[1745500751598,0.2896436,92841.0,92840.0,0.4389884]
[1745500752895,0.2896436,92841.0,92840.0,0.4072884]
[1745500753096,0.2896436,92841.0,92840.0,0.3746884]
[1745500753291,0.3210436,92841.0,92840.0,0.267]
[1745500753707,0.3210436,92841.0,92840.0,0.3746884]
[1745500754403,0.3210436,92841.0,92840.0,0.267]
[1745500754609,0.3210436,92841.0,92840.0,0.007]
[1745500754910,0.1076989,92831.0,92830.0,0.1076998]
[1745500755104,0.1076989,92831.0,92830.0,0.28]
[1745500755407,0.1076989,92831.0,92830.0,0.3877]
[1745500756109,0.2796989,92831.0,92830.0,0.3877]
[1745500756302,0.3441989,92831.0,92830.0,0.3877]
[1745500756797,0.3441989,92831.0,92830.0,0.3897]
[1745500757511,0.3451989,92831.0,92830.0,0.3947]
[1745500758209,0.3441989,92831.0,92830.0,0.3897]
[1745500758910,0.7049989,92831.0,92830.0,0.3897]
[1745500759103,0.3441989,92831.0,92830.0,0.3897]
[1745500759908,0.7049989,92831.0,92830.0,0.3897]
[1745500760405,0.7049989,92831.0,92830.0,0.282]
[1745500761609,0.7049989,92831.0,92830.0,0.283]
[1745500762009,0.7049989,92831.0,92830.0,0.3907]
[1745500762308,0.7049989,92831.0,92830.0,0.3897]
[1745500764614,0.3441989,92831.0,92830.0,0.3897]
[1745500780526,0.3441989,92831.0,92830.0,0.4208]
[1745500785526,0.3441989,92831.0,92830.0,0.282]
[1745500785724,0.107714,92818.0,92817.0,0.0305]
[1745500785929,0.107714,92818.0,92817.0,0.0505]
[1745500786131,0.343814,92818.0,92817.0,0.0505]
[1745500786428,0.343814,92818.0,92817.0,0.1582151]
[1745500786622,0.343814,92818.0,92817.0,0.0505]
[1745500787017,0.343814,92818.0,92817.0,0.021]
[1745500787922,0.704614,92818.0,92817.0,0.021]
[1745500788316,0.704614,92818.0,92817.0,0.001]
[1745500788522,1.205614,92818.0,92817.0,0.001]
[1745500788922,1.205614,92818.0,92816.0,0.00107739]
[1745500788923,0.1077151,92817.0,92816.0,0.00107739]
[1745500789134,0.2797151,92817.0,92816.0,0.00107739]
[1745500789333,0.3408151,92817.0,92816.0,0.29107739]
[1745500789632,0.3408151,92817.0,92816.0,0.00107739]
[1745500789834,0.3408151,92817.0,92816.0,0.27107739]
[1745500790035,0.4485551,92817.0,92816.0,0.27107739]
[1745500790331,0.9495551,92817.0,92816.0,0.27107739]
[1745500790719,0.9495551,92817.0,92816.0,0.00107739]
[1745500791123,0.9505551,92817.0,92816.0,0.00107739]
[1745500791525,0.9505551,92817.0,92816.0,0.06227739]
[1745500791730,0.9505551,92817.0,92816.0,0.30227739]
[1745500792331,0.8428151,92817.0,92816.0,0.40999369]
[1745500793528,0.3428151,92817.0,92816.0,0.40999369]
[1745500794733,0.3428151,92817.0,92816.0,0.27187739]
[1745500794933,0.3734151,92817.0,92816.0,0.27187739]
[1745500795534,0.3428151,92817.0,92816.0,0.3785163]
[1745500795730,0.3428151,92817.0,92816.0,0.37719369]
[1745500796133,0.8428151,92817.0,92816.0,0.37719369]
[1745500797441,0.3428151,92817.0,92816.0,0.37719369]
[1745500800636,0.2817151,92817.0,92816.0,0.40759369]
[1745500801339,0.1409151,92817.0,92816.0,0.40759369]
[1745500802142,0.3129151,92817.0,92816.0,0.40759369]
[1745500803031,0.3461151,92817.0,92816.0,0.40759369]
[1745500803244,0.1741151,92817.0,92816.0,0.40759369]
[1745500804443,0.1741151,92817.0,92816.0,0.29987739]
[1745500804632,0.1741151,92817.0,92816.0,0.26947739]
[1745500805245,0.3461151,92817.0,92816.0,0.26947739]
[1745500806326,0.3787151,92817.0,92816.0,0.26947739]
[1745500807641,0.8787151,92817.0,92816.0,0.26947739]
[1745500809939,0.1077233,92810.0,92809.0,0.0331]
[1745500810238,0.1077233,92810.0,92809.0,0.0531]
[1745500810446,0.1409233,92810.0,92809.0,0.0531]
[1745500810743,0.5017233,92810.0,92809.0,0.0331]
[1745500811133,0.6737233,92810.0,92809.0,0.0341]
[1745500811329,0.7043233,92810.0,92809.0,0.0341]
[1745500811541,0.7043233,92810.0,92809.0,0.0351]
[1745500812238,0.7043233,92810.0,92809.0,0.002]
[1745500812643,0.7043233,92810.0,92809.0,0.001]
[1745500812837,0.1077291,92805.0,92804.0,0.1396298]
[1745500813036,0.1077291,92805.0,92804.0,0.3019]
[1745500813339,0.1712291,92805.0,92804.0,0.4096302]
[1745500815653,0.85146414,92805.0,92804.0,0.0335]
[1745500821349,0.85146414,92805.0,92804.0,0.0435]
[1745500825856,0.85146414,92805.0,92804.0,0.0335]
[1745500826354,0.67946414,92805.0,92804.0,0.0335]
[1745500826558,0.6077291,92805.0,92804.0,0.0335]
[1745500826854,0.6077291,92805.0,92804.0,0.1412302]
[1745500827058,0.1077291,92805.0,92804.0,0.1412302]
[1745500827557,0.1077291,92805.0,92804.0,0.0335]
[1745500827857,0.1723291,92805.0,92804.0,0.0335]
[1745500828855,0.18058849,92805.0,92804.0,0.0335]
[1745500829056,0.68058849,92805.0,92804.0,0.0335]
[1745500829266,0.85258849,92805.0,92804.0,0.0335]
[1745500831863,0.85258849,92805.0,92804.0,0.0645]
[1745500833053,0.85258849,92805.0,92804.0,0.1722302]
[1745500833661,0.78798849,92805.0,92804.0,0.1722302]
[1745500834345,0.7797291,92805.0,92804.0,0.1722302]
[1745500835160,0.6077291,92805.0,92804.0,0.1722302]
[1745500836461,0.1077291,92805.0,92804.0,0.1722302]
[1745500837860,0.1381291,92805.0,92804.0,0.1722302]
[1745500839653,0.1691291,92805.0,92804.0,0.1722302]
[1745500839858,0.1691291,92805.0,92804.0,0.0335]
[1745500840261,0.3411291,92805.0,92804.0,0.0335]
[1745500840661,0.3411291,92805.0,92804.0,0.004]
[1745500840862,0.1077465,92790.0,92789.0,0.1077469]
[1745500841966,0.1394465,92790.0,92789.0,0.1077469]
[1745500842357,0.1394465,92790.0,92789.0,0.1726469]
[1745500842863,0.1394465,92790.0,92789.0,0.1776469]
[1745500843464,0.1404465,92790.0,92789.0,0.1826469]
[1745500844465,0.1087465,92790.0,92789.0,0.1826469]
[1745500845170,0.1087465,92790.0,92789.0,0.3546469]
[1745500847055,0.001,92790.0,92789.0,0.3546469]
[1745500847260,0.1087465,92790.0,92789.0,0.3546469]
[1745500848272,0.001,92790.0,92789.0,0.3546469]
[1745500849275,0.001,92790.0,92789.0,0.1826469]
[1745500852265,0.001,92790.0,92789.0,0.3546469]
[1745500856173,0.001,92790.0,92789.0,0.4624189]
[1745500856780,0.04689815,97826.0,92789.0,0.4624189]
[1745500856781,0.0672,92816.0,92801.0,0.1077337]
[1745500856971,0.1077317,92803.0,92801.0,0.4685337]
[1745500857181,0.19011263,92802.0,92801.0,0.7329337]
[1745500857879,0.19011263,92802.0,92801.0,0.7349337]
[1745500858065,0.1077325,92802.0,92801.0,0.7349337]
[1745500858267,0.1077325,92802.0,92801.0,0.5629337]
[1745500858966,0.1690325,92802.0,92801.0,0.5649337]
[1745500861276,0.1690325,92802.0,92801.0,0.5337337]
[1745500861581,0.1690325,92802.0,92801.0,0.1117337]
[1745500862166,0.3410325,92802.0,92801.0,0.1117337]
[1745500864287,0.3410325,92802.0,92801.0,0.004]
[1745500864482,0.3410325,92802.0,92801.0,0.1117337]
[1745500865077,0.4081925,92802.0,92801.0,0.004]
[1745500865383,0.9081925,92802.0,92801.0,0.004]
[1745500873085,0.8410325,92802.0,92801.0,0.004]
[1745500873287,0.9081925,92802.0,92801.0,0.004]
[1745500874485,0.9091925,92802.0,92801.0,0.002]
[1745500874881,0.107736,92799.0,92798.0,0.1077369]
[1745500875187,0.640536,92799.0,92798.0,0.1077369]
[1745500875877,0.703636,92799.0,92798.0,0.1077369]
[1745500876288,1.203636,92799.0,92798.0,0.1077369]
[1745500877078,1.203636,92799.0,92798.0,0.1378369]
[1745500877277,0.842836,92799.0,92798.0,0.1378369]
[1745500877483,0.842836,92799.0,92798.0,0.1680369]
[1745500877887,0.342836,92799.0,92798.0,0.1680369]
[1745500878082,0.170836,92799.0,92798.0,0.1680369]
[1745500879786,0.107736,92799.0,92798.0,0.1680369]
[1745500887287,0.140936,92799.0,92798.0,0.1680369]
[1745500888092,0.172536,92799.0,92798.0,0.1680369]
[1745500888596,0.172536,92799.0,92798.0,0.0301]
[1745500889193,0.344536,92799.0,92798.0,0.0301]
[1745500889882,0.344536,92799.0,92798.0,0.1378372]
[1745500890296,0.139336,92799.0,92798.0,0.1378372]
[1745500890494,0.139336,92799.0,92798.0,0.1691372]
[1745500890695,0.107736,92799.0,92798.0,0.1691372]
[1745500892803,0.138036,92799.0,92798.0,0.1691372]
[1745500892986,0.168036,92799.0,92798.0,0.1691372]
[1745500893692,0.107736,92799.0,92798.0,0.1691372]
[1745500894099,0.2258674,92800.0,92799.0,0.107736]
[1745500894100,0.107735,92800.0,92799.0,0.107736]
[1745500894399,0.107735,92800.0,92799.0,0.169636]
[1745500895686,0.10966521,92802.0,92801.0,0.1077337]
[1745500896200,0.10966521,92802.0,92801.0,0.3416337]
[1745500896889,0.11066521,92802.0,92801.0,0.3416337]
[1745500897089,0.11166521,92802.0,92801.0,0.1696337]
[1745500898302,0.11066521,92802.0,92801.0,0.1706337]
[1745500899301,0.1077295,92805.0,92804.0,0.1077302]
[1745500899902,0.1402295,92805.0,92804.0,0.1077302]
[1745500900100,0.1402295,92805.0,92804.0,0.1703302]
[1745500905704,0.1402295,92805.0,92804.0,0.1077302]
[1745500906006,0.107736,92799.0,92798.0,0.2456693]
[1745500906897,0.172836,92799.0,92798.0,0.2456693]